Workbook

Sheet Krycí list - oblast podpory A
B1: Krycí list technických parametrů k žádosti o podporu: A - Snižování energetické náročnosti stávajících rodinných a bytových domů (pro RD včetně kombinací s podoblastmi podpory C.1, C.3 a C.4)
B5: Upozornění: Struktura formuláře se nesmí měnit!
A6: 1 | B6: ČÍSLO ŽÁDOSTI
A7: 2 | B7: Žádám v podprogramu : | J7: X | K7: Rodinné domy | V7: Bytové domy
B9: Část A - Identifikační údaje
B11: IDENTIFIKACE ŽADATELE
A12: 3 | B12: Příjmení / Název : | H12: Černý | X12: Jméno : | AA12: Pavel
B14: IDENTIFIKACE NEMOVITOSTI
A15: 4 | B15: Katastrální území (číslo) : | J15: 788228 | X15: Číslo listu vlastnictví : | AE15: 1635
A16: 5 | B16: Číslo parcely : | G16: 1772 | X16: Číslo popisné : | AC16: 257
B18: IDENTIFIKACE ZPRACOVATELE PROJEKTOVÉ DOKUMENTACE
A19: 6 | B19: Příjmení / Název : | G19: Projektant | X19: Jméno : | AA19: Petr
A20: =1+A19 -> 7 | B20: Telefon : | E20: 987,987,987 | L20: E-mail : | O20: Petr.projektant@email.cz
A21: =1+A20 -> 8 | B21: Autorizovaná osoba | X21: Číslo autorizace : | AD21: 123
A22: =1+A21 -> 9 | B22: Příjmení : | E22: Prokjektant | X22: Jméno : | AA22: Petr
B24: IDENTIFIKACE ZPRACOVATELE ENERGETICKÉHO HODNOCENÍ
A25: 10 | B25: Příjmení / Název : | G25: DEKSOFT | X25: Jméno :
A26: =1+A25 -> 11 | B26: Telefon : | E26: 234 234 234 | L26: E-mail : | O26: Jan.zeleny@email.cz
A27: =1+A26 -> 12 | B27: Energetický specialista | X27: Číslo oprávnění : | AC27: 15987
A28: =1+A27 -> 13 | B28: Příjmení : | E28: Zelený | X28: Jméno : | AA28: Jan
B30: Část B - Technické parametry budovy před realizací podporovaných opatření
B32: TYP BUDOVY
A33: 14 | B33: Počet bytových jednotek : | X33: 1 | AC33: b.j.
A34: =1+A33 -> 15 | B34: Památkově chráněná budova : | Y34: ano | AB34: X | AC34: ne
A35: =1+A34 -> 16 | B35: Období výstavby : | X35: 2. pol. 20. stol | AC35: rok
A36: =1+A35 -> 17 | B36: Hlavní zdroj tepla: | AC36: emisní třídy
B38: ROZDĚLENÍ PODLE ENERGONOSITELŮ
B39: Uveďte všechny energonositele před realizací podporovaných opatření.
B40: Energonositel | X40: Dílčí vypočtená spotřeba energie /pomocná energie [MWh/rok] | AC40: Neobnovitelná primární energie [MWh/rok]
A41: =1+A36 -> 18 | B41: 1) | C41: Elektřina | X41: 0.874 | AC41: =IF(ISNUMBER(X41),IF(ISTEXT(C41),(VLOOKUP(C41,$AI$243:$AP$258,8,FALSE))*X41,""),"") -> 2.621
A42: =1+A41 -> 19 | B42: 2) | C42: Zemní plyn | X42: 70.825 | AC42: 77.907
A43: 20 | B43: 3)
A44: 21 | B44: 4)
A45: 22 | B45: 5)
A46: 23 | B46: 6)
A47: 24 | B47: Celkem | X47: =IF(ISNUMBER(X41),IF(OR(C41="Elektřina - dodávka mimo budovu",C41="Teplo - dodávka mimo budovu"),0,X41)+IF(OR(C42="Elektřina - dodávka mimo budovu",C42="Teplo - dodávka mimo budovu"),0,X42)+IF(OR(C43="Elektřina - dodávka mimo budovu",C43="Teplo - dodávka mimo budovu"),0,X43)+IF(OR(C44="Elektřina - dodávka mimo budovu",C44="Teplo - dodávka mimo budovu"),0,X44)+IF(OR(C45="Elektřina - dodávka mimo budovu",C45="Teplo - dodávka mimo budovu"),0,X45)+IF(OR(C46="Elektřina - dodávka mimo budovu",C46="Teplo - dodávka mimo budovu"),0,X46),"") -> 71.698 | AC47: =IF(ISNUMBER(AC41),SUM(AC41:AG46),"") -> 80.528
A48: 25 | B48: Referenční hodnota | X48: 29.041 | AC48: 32.544
A49: 26 | B49: Klasifikační třída | X49: G | AC49: G
B50: DÍLČÍ DODANÁ ENERGIE
B51: Uveďte všechny dílčí dodané energie pro celou budovu před realizací podporovaných opatření
B52: Technické systémy budovy | X52: Dílčí dodaná energie [MWh/rok] | AC52: Procentuální zastoupení [%]
A53: =1+A49 -> 27 | B53: Vytápění | X53: 66.259 | AC53: =IF(AND(ISNUMBER(X53),ISNUMBER($X$59)),X53/$X$59,"") -> 92%
A54: =1+A53 -> 28 | B54: Chlazení | X54: 0.000 | AC54: 0%
A55: 29 | B55: Větrání | X55: 0.000 | AC55: 0%
A56: 30 | B56: Úprava vlhkosti vzduchu | X56: 0.000 | AC56: 0%
A57: 31 | B57: Příprava teplé vody | X57: 4.708 | AC57: 7%
A58: 32 | B58: Osvětlení | X58: 0.731 | AC58: 1%
A59: 33 | B59: Celkem | X59: =IF((SUM(X53:AB58)>0),SUM(X53:AB58),"") -> 71.698 | AC59: =IF((SUM(AC53:AG58)>0),SUM(AC53:AG58),"") -> 100%
B61: PARAMETRY BUDOVY
A62: =A59+1 -> 34 | B62: Měrná potřeba tepla na vytápění EA : | X62: 329 | AC62: kWh.m-2.rok-1
A63: =1+A62 -> 35 | B63: Průměrný součinitel prostupu tepla Uem : | X63: 1.29 | AC63: W.m-2.K-1
A64: =1+A63 -> 36 | B64: Referenční hodnota průměrného součinitele prostupu tepla Uem,R : | X64: 0.37 | AC64: W.m-2.K-1
A65: =1+A64 -> 37 | B65: Faktor tvaru budovy A/V : | X65: 0.82 | AC65: m2/m3
A66: =1+A65 -> 38 | B66: Celková energeticky vztažná plocha AC : | X66: 127.60 | AC66: m2
B68: Část C - Technické údaje o podporovaných opatřeních
B70: PODPOROVANÁ OPATŘENÍ - ZATEPLENÍ KONSTRUKCÍ A VÝMĚNA VÝPLNÍ OTVORŮ
B71: Technické údaje o podporovaných opatřeních uveďte na samostatné přílohy (příloha č. 1 - Soupis zateplovaných konstrukcí na obálce budovy a příloha č. 2 - Soupis měněných výplní otvoru na obálce budovy).
A72: =1+A66 -> 39 | B72: Počet listů přílohy č. 1 : | X72: 2 | AC72: listů
A73: =A72+1 -> 40 | B73: Počet listů přílohy č. 2 : | X73: 2 | AC73: listů
B75: VÝKAZ VÝMĚR KONSTRUKCÍ
B76: Uveďte plochu konstrukcí podporovaných opatření (jedná se o součet ploch daných konstrukcí z příloh č.1 a č.2 ke krycím listům) a to zaokrouhlenou na jedno desetinné místo směrem dolů. Není-li daný typ konstrukce zastoupen, vyplňte nulovou hodnotu. | AI76: Jsou-li orgánem památkové péče stanoveny podmínky určující zvláštní postup při provádění, platí pro danou část opatření zvýhodněný koeficient upravující výši dotace. Plochu těchto konstrukcí uveďte v tomto sloupci. Hodnota pro daný typ konstrukce odpovíd
B77: Typy konstrukcí | S77: Plocha památkově chráněných kcí. | X77: Plocha běžných konstrukcí | AC77: Jednotky
A78: =1+A73 -> 41 | B78: Celková plocha zateplovaných obvodových stěn : | X78: 67.7 | AC78: m2 | AI78: Plochu konstrukce, na které jsou stanoveny zvláštní poždavky památkovou péčí uveďte v tomto sloupci.Hodnota pro daný typ konstrukce odpovídá součtu ploch shodných typu konstrukcí uvedených Příloze č.1 a č.2 ke krycímu listu.
A79: =1+A78 -> 42 | B79: Celková plocha zateplované střechy : | X79: 55.4 | AC79: m2
A80: =1+A79 -> 43 | B80: Celková plocha zateplované podlahy na terénu : | X80: 86.4 | AC80: m2
A81: =1+A80 -> 44 | B81: Celková plocha měněných výplní stavebních otvorů : | X81: 25 | AC81: m2
A82: =1+A81 -> 45 | B82: Celková plocha stropů a ostatních zateplovaných konstrukcí : | X82: 59.3 | AC82: m2
B84: PARAMETRY NOVÉHO ZDROJE TEPLA
A85: =A82+1 -> 46 | B85: Název zdroje (typové označení) **: | X85: Kód SVT *:
A86: =1+A85 -> 47 | B86: Typ zdroje (podoblast podpory) :
A87: =1+A86 -> 48 | B87: Emisní třída **: | R87: Účinnost zdroje [%] / Topný faktor [-] **:
B89: SOLÁRNÍ TERMICKÝ SYSTÉM
A90: =A87+1 -> 49 | B90: Název systému (typové označení) **: | X90: Kód SVT *:
A91: =1+A90 -> 50 | B91: Způsob využití : | J91: pouze příprava teplé vody | Y91: příprava teplé vody a přitápění
A92: =1+A91 -> 51 | B92: Počet kolektorů : | N92: ks | P92: Celková plocha apertury : | AC92: m2
A93: =1+A92 -> 52 | B93: Celkový využitelný zisk solárního systému QSS,u : | AC93: kWh.rok-1
A94: =1+A93 -> 53 | B94: Měrný využitelný zisk solárního systému qSS,u : | X94: =IF(AND(ISNUMBER(X93),ISNUMBER(X92)),X93/X92,"") ->  | AC94: kWh.m-2.rok-1
A95: =1+A94 -> 54 | B95: Solární podíl (pokrytí potřeby tepla) f : | AC95: %
B96: SOLÁRNÍ FOTOVOLTAICKÝ SYSTÉM
A97: =A94+1 -> 54 | B97: Název FV panelů (typové označení) **: | X97: Kód SVT *:
A98: =A97+1 -> 55 | B98: Název měniče (typové označení) **: | X98: Kód SVT *:
A99: 56 | B99: Typ solárního kolektoru :
A100: 57 | B100: Typ systému :
A101: 58 | B101: Typ akumulace u FV systému připojeného do distribuční sítě: | K101: akumulace energie do teplé vody
A102: 59 | K102: do elektrických akumulátorů o kapacitě : | AC102: kWh
A103: 60 | B103: Počet kolektorů : | N103: ks | S103: Celková plocha : | AC103: m2
A104: 61 | B104: Roční spotřeba elektrické energie : | AC104: kWh
A105: 62 | B105: Instalovaný (špičkový) elektrický výkon : | AC105: kWp
A106: 63 | B106: Celkový využitelný zisk v budově : | AC106: kWh.rok-1
A107: 64 | B107: Míra využití vyrobené elektřiny pro krytí spotřeby/Pokrytí potřeby tepla na přípravu TV : | AC107: %
B109: SYSTÉM PŘÍPAVY TEPLÉ VODY A VYTÁPĚNÍ
A110: =A107+1 -> 65 | B110: Celkový objem zásobníků tepla na vytápění (ohřev TV řešen samostatně) : | AC110: l
A111: =1+A110 -> 66 | B111: Celkový objem zásobníků teplé vody (ohřev TV řešen samostatně) : | AC111: l
A112: =1+A111 -> 67 | B112: Celkový objem kombinovaných zásobníků tepla na vytápění a přípravu TV : | AC112: l
A113: =1+A112 -> 68 | B113: Je použita cirkulace teplé vody : | Y113: ano | AD113: ne
B115: PARAMETRY SYSTÉMU NUCENÉHO VĚTRÁNÍ
A116: =A113+1 -> 69 | B116: Název zařízení (typové označení) **: | Z116: Kód SVT **:
A117: =1+A116 -> 70 | B117: Typ systému *:
A118: =1+A117 -> 71 | B118: Účinnost zpětného získávání tepla : | AC118: %
B120: Část D - Technické parametry budovy po realizaci podporovaných opatření
B122: VLASTNOSTI BUDOVY
A123: =1+A118 -> 72 | B123: Dosažená hladina podpory : | X123: A.2
A124: =1+A123 -> 73 | B124: Měrná potřeba tepla na vytápění EA : | X124: 43 | AC124: kWh.m-2.rok-1
A125: 74 | B125: Referenční hodnota měrné potřeby tepla na vytápění EA,R : | X125: 55 | AC125: kWh.m-2.rok-1
A126: 75 | B126: Procentuální snížení měrné potřeby tepla na vytápění : | X126: =IF(AND(ISNUMBER(X124),ISNUMBER(X62)),1-X124/X62,"") -> 87% | AC126: %
A127: 76 | B127: Referenční hodnota průměrného součinitele prostupu tepla Uem,R : | X127: 0.39 | AC127: W.m-2.K-1
A128: 77 | B128: Průměrný součinitel prostupu tepla Uem : | X128: 0.31 | AC128: W.m-2.K-1
A129: 78 | B129: Požadovaná hodnota Uem pro danou podoblast podpory : | X129: =IF(AND(ISNUMBER(X127),ISNUMBER(X128),ISTEXT(X123)),IF(X123="A.0","Bez požadavku",IF(X123="A.1",0.95*ROUND(X127,2),IF(X123="A.2",0.85*ROUND(X127,2),IF(X123="A.3",0.75*ROUND(X127,2))))),"") -> 0.33 | AC129: W.m-2.K-1
A130: 79 | B130: Faktor tvaru budovy A/V : | X130: 0.55 | AC130: m2/m3
A131: 80 | B131: Celková energeticky vztažná plocha AC : | X131: 200.00 | AC131: m2
A132: 81 | B132: Naměřená průvzdušnost obálky budovy n50 **: | X132: 4.5 | AC132: h-1
B134: TYP BUDOVY
A135: =A132+1 -> 82 | B135: Skutečný počet osob : | X135: 4 | AC135: osob
A136: =1+A135 -> 83 | B136: Počet bytových jednotek : | X136: 1 | AC136: b.j.
A137: =1+A136 -> 84 | B137: Počet podzemních podlaží : | X137: 1 | AC137: podlaží
A138: =1+A137 -> 85 | B138: Počet nadzemních podlaží : | X138: 2 | AC138: podlaží
A139: =1+A138 -> 86 | B139: Vazba na okolní zástavbu : | X139: volně stojící | AC139: -
B145: ROZDĚLENÍ PODLE ENERGONOSITELŮ
B146: Uveďte všechny energonositele před realizací podporovaných opatření.
B147: Energonositel | X147: Dílčí vypočtená spotřeba energie /pomocná energie [MWh/rok] | AC147: Neobnovitelná primární energie [MWh/rok]
A148: =1+A139 -> 87 | B148: 1) | C148: Elektřina | X148: 1.264 | AC148: =IF(ISNUMBER(X148),IF(ISTEXT(C148),(VLOOKUP(C148,$AI$243:$AP$258,8,FALSE))*X148,""),"") -> 3.792
A149: =1+A148 -> 88 | B149: 2) | C149: Zemní plyn | X149: 16.114 | AC149: 17.726
A150: 89 | B150: 3)
A151: 90 | B151: 4)
A152: 91 | B152: 5)
A153: 92 | B153: 6)
A154: 93 | B154: Celkem | X154: =IF(ISNUMBER(X148),IF(OR(C148="Elektřina - dodávka mimo budovu",C148="Teplo - dodávka mimo budovu"),0,X148)+IF(OR(C149="Elektřina - dodávka mimo budovu",C149="Teplo - dodávka mimo budovu"),0,X149)+IF(OR(C150="Elektřina - dodávka mimo budovu",C150="Teplo - dodávka mimo budovu"),0,X150)+IF(OR(C151="Elektřina - dodávka mimo budovu",C151="Teplo - dodávka mimo budovu"),0,X151)+IF(OR(C152="Elektřina - dodávka mimo budovu",C152="Teplo - dodávka mimo budovu"),0,X152)+IF(OR(C153="Elektřina - dodávka mimo budovu",C153="Teplo - dodávka mimo budovu"),0,X153),"") -> 17.378 | AC154: =IF(ISNUMBER(AC148),SUM(AC148:AG153),"") -> 21.517
A155: 94 | B155: Procentuální snížení energií oproti stavu před realizací opatření: | X155: =IF(AND(ISNUMBER(X154),ISNUMBER(X47)),1-X154/X47,"") -> 76% | AC155: =IF(AND(ISNUMBER(AC154),ISNUMBER(AC47)),1-AC154/AC47,"") -> 73%
A156: 95 | B156: Referenční hodnota | X156: 27.085 | AC156: 31.19552
A157: 96 | B157: Klasifikační třída | X157: C | AC157: C
B159: DÍLČÍ DODANÁ ENERGIE
B160: Uveďte všechny dílčí dodané energie pro celou budovu po realizaci podporovaných opatření
B161: Technické systémy budovy | X161: Dílčí dodaná energie [MWh/rok] | AC161: Procentuální zastoupení [%]
A162: =1+A157 -> 97 | B162: Vytápění | X162: 12.293 | AC162: =IF(AND(ISNUMBER(X162),ISNUMBER($X$168)),X162/$X$168,"") -> 71%
A163: =A162+1 -> 98 | B163: Chlazení | X163: 0.000 | AC163: 0%
A164: =1+A163 -> 99 | B164: Větrání | X164: 0.000 | AC164: 0%
A165: =1+A164 -> 100 | B165: Úprava vlhkosti vzduchu | X165: 0.000 | AC165: 0%
A166: =1+A165 -> 101 | B166: Příprava teplé vody | X166: 3.951 | AC166: 23%
A167: =1+A166 -> 102 | B167: Osvětlení | X167: 1.134 | AC167: 7%
A168: =1+A167 -> 103 | B168: Celkem | X168: =IF((SUM(X162:AB167)>0),SUM(X162:AB167),"") -> 17.378 | AC168: =IF((SUM(AC162:AG167)>0),SUM(AC162:AG167),"") -> 100%
B170: Část E - Prohlášení energetického specialisty
B172: Prohlašuji, že všechny údaje uvedené v tomto krycím listu technických parametrů a jeho přílohách jsou v souladu s odborným posudkem, který byl řádně vypracován dle platných právních předpisů a podmínek Programu. Jsem si vědom, že nepravdivost tohoto prohlášení může mít za následek sankce vyplývající z příslušných právních předpisů.
A176: =1+A168 -> 104 | B176: V | J176: dne | L176: 1.7.2016
T178: Ing. Jan Zelený CSc
T179: jméno, příjmení (hůlkovým písmem), podpis energetického specialisty
B181: Část F - Prohlášení žadatele o podporu
B183: Prohlašuji, že jsem se seznámil s odborným posudkem i se všemi údaji uvedenými v tomto krycím listu technických parametrů a že opatření, které má být podpořeno z programu Nová zelená úsporám, bude provedeno v souladu s odborným posudkem a s tímto krycím listem technických parametrů.
A186: =1+A176 -> 105 | B186: V | J186: dne | L186: =NOW() -> 2016-07-19T16:03:46.620
T188: jméno, příjmení (hůlkovým písmem) a podpis žadatele
AI196: 1 - Kotel na biomasu s ruční dodávkou paliva
AI197: 2 - Kotel na biomasu se samočinnou dodávkou paliva
AI198: 3 - Krbová kamna na biomasu s teplovodním výměníkem s ruční dodávkou paliva a uzavřené krbové vložky s teplovodním výměníkem
AI199: 4 - Krbová kamna na biomasu s teplovodním výměníkem se samočinnou dodávkou paliva
AI200: 5 - Tepelné čerpadlo voda - voda
AI201: 6 - Tepelné čerpadlo země - voda
AI202: 7 - Tepelné čerpadlo vzduch - voda
AI203: 8 - Plynový kondenzační kotel
AI204: 9 - Napojení na soustavu zásobování teplem s vyšším než 50% podílem OZE
AI207: 1 - Centrální systém nuceného větrání se zpětným získáváním tepla
AI208: 2 - Decentrální systém nuceného větrání se zpětným získáváním tepla
AI211: 1. Stěna vnější
AI212: 2. Střecha strmá se sklonem nad 45°
AI213: 3. Střecha plochá a šikmá se sklonem do 45° včetně
AI214: 4. Strop s podlahou nad venkovním prostorem
AI215: 5. Strop pod nevytápěnou půdou (se střechou bez tepelné izolace)
AI216: 6. Stěna k nevytápěné půdě (se střechou bez tepelné izolace)
AI217: 7. Podlaha a stěna vytápěného prostoru přilehlá k zemině
AI218: 8. Strop a stěna vnitřní z vytápěného k nevytápěnému prostoru
AI219: 9. Strop a stěna vnitřní z vytápěného k temperovanému prostoru
AI220: 10. Strop a stěna vnější z temperovaného prostoru k venkovnímu prostředí
AI221: 11. Podlaha a stěna temperovaného prostoru přilehlá k zemině
AI222: 12. Stěna mezi sousedními budovami
AI223: 13. Strop mezi prostory s rozdílem teplot do 10 °C včetně
AI224: 14. Stěna mezi prostory s rozdílem teplot do 10 °C včetně
AI225: 15. Strop vnitřní mezi prostory s rozdílem teplot do 5 °C včetně
AI226: 16. Stěna vnitřní mezi prostory s rozdílem teplot do 5 °C včetně
AI229: A.0
AI230: A.1
AI231: A.2
AI232: A.3
AI235: 1. Výplň otvoru ve vnější stěně a strmé střeše, z vytápěného prostoru do venkovního prostředí, kromě dveří
AI236: 2. Šikmá výplň otvoru se sklonem do 45°, z vytápěného prostoru do venkovního prostředí
AI237: 3. Dveřní výplň otvoru z vytápěného prostoru do venkovního prostředí (včetně rámu)
AI238: 4. Výplň otvoru vedoucí z vytápěného do temperovaného prostoru
AI239: 5. Výplň otvoru vedoucí z temperovaného prostoru do venkovního prostředí
AI240: 6. Šikmá výplň otvoru se sklonem do 45° vedoucí z temperovaného prostoru do venkovního prostředí
AI241: 7. Lehký obvodový plášť (LOP)
AO243: 0 | AP243: 0
AI244: Ostatní neuvedené energonositele | AO244: 1.2 | AP244: 1.2
AI245: Zemní plyn | AO245: 1.1 | AP245: 1.1
AI246: Černé uhlí | AO246: 1.1 | AP246: 1.1
AI247: Hnědé uhlí | AO247: 1.1 | AP247: 1.1
AI248: Elektřina | AO248: 3.2 | AP248: 3
AI249: Dřevěné pelety | AO249: 1.2 | AP249: 0.2
AI250: Kusové dřevo, dřevní štěpka | AO250: 1.1 | AP250: 0.1
AI251: Energie okolního prostředí (elektřina, teplo) | AO251: 1 | AP251: 0
AI252: Propan-butan/LPG | AO252: 1.2 | AP252: 1.2
AI253: Topný olej | AO253: 1.2 | AP253: 1.2
AI254: Elektřina - dodávka mimo budovu | AO254: -3.2 | AP254: -3
AI255: Teplo - dodávka mimo budovu | AO255: -1.1 | AP255: -1
... 41 more rows

Sheet Příloha č.1 krycího listu
B1: Příloha č. 1 - Soupis zateplovaných konstrukcí na obálce budovy
A3: 1 | B3: ČÍSLO ŽÁDOSTI : | Z3: =IF(ISNUMBER('Krycí list - oblast podpory A'!Z6:AG6),'Krycí list - oblast podpory A'!Z6:AG6,"") -> 
A5: 2 | B5: Část A - Parametry konstrukcí | X5: ČÍSLO LISTU * | AD5: 1 | AE5: Z | AG5: 2
A7: 3 | B7: Název/označení konstrukce v odborném posudku : | Q7: STN-8
A8: =1+A7 -> 4 | B8: Typ konstrukce pro stanovení výše způsobilých výdajů : | S8: X | T8: Obvodová stěna a podlaha nad exteriérem
A9: 5 | B9: (vyberte jeden typ) | T9: Střecha
A10: 6 | T10: Podlaha na terénu
A11: 7 | T11: Strop a ostatní konstrukce
A12: 8 | B12: Typ konstrukce dle ČSN 73 0540-2:2011, tab.3: | O12: Stěna vnější
A13: 9 | B13: Pro tuto konstrukci je památkovou péčí stanoven zvláštní postup při provádění : | Z13: Ne
A14: 10 | B14: Plocha konstrukce (dle energetického hodnocení): | Z14: 47 | AD14: m2
A15: 11 | B15: Součinitel prostupu tepla konstrukce U : | Z15: 0.208 | AD15: W.m-2.K-1
A16: 12 | B16: Vrstva 1. | C16: Název výrobku (typové označení) **: | Z16: Kód SVT *:
A17: 13 | C17: Tloušťka tepelně izolačního materiálu : | Z17: 150 | AD17: mm
A18: 14 | C18: Deklarovaný součinitel tepelné vodivosti izolačního materiálu λd : | Z18: 0.032 | AD18: W.m-1.K-1
A19: 15 | B19: Vrstva 2. | C19: Název výrobku (typové označení) **: | Z19: Kód SVT *:
A20: 16 | C20: Tloušťka tepelně izolačního materiálu : | AD20: mm
A21: 17 | C21: Deklarovaný součinitel tepelné vodivosti izolačního materiálu λd : | AD21: W.m-1.K-1
A22: 18 | B22: Vrstva 3. | C22: Název výrobku (typové označení) **: | Z22: Kód SVT *:
A23: 19 | C23: Tloušťka tepelně izolačního materiálu : | AD23: mm
A24: 20 | C24: Deklarovaný součinitel tepelné vodivosti izolačního materiálu λd : | AD24: W.m-1.K-1
A26: =1+A24 -> 21 | B26: Název/označení konstrukce v odborném posudku : | Q26: STN-9
A27: =1+A26 -> 22 | B27: Typ konstrukce pro stanovení výše způsobilých výdajů : | S27: X | T27: Obvodová stěna a podlaha nad exteriérem
A28: 23 | B28: (vyberte jeden typ) | T28: Střecha
A29: 24 | T29: Podlaha na terénu
A30: 25 | T30: Strop a ostatní konstrukce
A31: 26 | B31: Typ konstrukce dle ČSN 73 0540-2:2011, tab.3: | O31: Stěna vnější
A32: 27 | B32: Pro tuto konstrukci je památkovou péčí stanoven zvláštní postup při provádění : | Z32: Ne
A33: 28 | B33: Plocha konstrukce (dle energetického hodnocení): | Z33: 10.5 | AD33: m2
A34: 29 | B34: Součinitel prostupu tepla konstrukce U : | Z34: 0.215 | AD34: W.m-2.K-1
A35: 30 | B35: Vrstva 1. | C35: Název výrobku (typové označení) **: | Z35: Kód SVT *:
A36: 31 | C36: Tloušťka tepelně izolačního materiálu : | Z36: 150 | AD36: mm
A37: 32 | C37: Deklarovaný součinitel tepelné vodivosti izolačního materiálu λd : | Z37: 0.032 | AD37: W.m-1.K-1
A38: 33 | B38: Vrstva 2. | C38: Název výrobku (typové označení) **: | Z38: Kód SVT *:
A39: 34 | C39: Tloušťka tepelně izolačního materiálu : | AD39: mm
A40: 35 | C40: Deklarovaný součinitel tepelné vodivosti izolačního materiálu λd : | AD40: W.m-1.K-1
A41: 36 | B41: Vrstva 3. | C41: Název výrobku (typové označení) **: | Z41: Kód SVT *:
A42: 37 | C42: Tloušťka tepelně izolačního materiálu : | AD42: mm
A43: 38 | C43: Deklarovaný součinitel tepelné vodivosti izolačního materiálu λd : | AD43: W.m-1.K-1
A46: 39 | B46: Název/označení konstrukce v odborném posudku : | Q46: STN-10
A47: =A46+1 -> 40 | B47: Typ konstrukce pro stanovení výše způsobilých výdajů : | S47: X | T47: Obvodová stěna a podlaha nad exteriérem
A48: 41 | B48: (vyberte jeden typ) | T48: Střecha
A49: 42 | T49: Podlaha na terénu
A50: 43 | T50: Strop a ostatní konstrukce
A51: 44 | B51: Typ konstrukce dle ČSN 73 0540-2:2011, tab.3: | O51: Stěna vnější
A52: 45 | B52: Pro tuto konstrukci je památkovou péčí stanoven zvláštní postup při provádění : | Z52: Ne
A53: 46 | B53: Plocha konstrukce (dle energetického hodnocení): | Z53: 10.2 | AD53: m2
A54: 47 | B54: Součinitel prostupu tepla konstrukce U : | Z54: 0.178 | AD54: W.m-2.K-1
A55: 48 | B55: Vrstva 1. | C55: Název výrobku (typové označení) **: | Z55: Kód SVT *:
A56: 49 | C56: Tloušťka tepelně izolačního materiálu : | Z56: 40 | AD56: mm
A57: 50 | C57: Deklarovaný součinitel tepelné vodivosti izolačního materiálu λd : | Z57: 0.037 | AD57: W.m-1.K-1
A58: 51 | B58: Vrstva 2. | C58: Název výrobku (typové označení) **: | Z58: Kód SVT *:
A59: 52 | C59: Tloušťka tepelně izolačního materiálu : | Z59: 60 | AD59: mm
A60: 53 | C60: Deklarovaný součinitel tepelné vodivosti izolačního materiálu λd : | Z60: 0.032 | AD60: W.m-1.K-1
A61: 54 | B61: Vrstva 3. | C61: Název výrobku (typové označení) **: | Z61: Kód SVT *:
A62: 55 | C62: Tloušťka tepelně izolačního materiálu : | AD62: mm
A63: 56 | C63: Deklarovaný součinitel tepelné vodivosti izolačního materiálu λd : | AD63: W.m-1.K-1
A65: 57 | B65: Název/označení konstrukce v odborném posudku : | Q65: PDL(z)-12
A66: =1+A65 -> 58 | B66: Typ konstrukce pro stanovení výše způsobilých výdajů : | T66: Obvodová stěna a podlaha nad exteriérem
A67: 59 | B67: (vyberte jeden typ) | T67: Střecha
A68: 60 | S68: X | T68: Podlaha na terénu
A69: 61 | T69: Strop a ostatní konstrukce
A70: 62 | B70: Typ konstrukce dle ČSN 73 0540-2:2011, tab.3: | O70: Podlaha a stěna vytápěného prostoru přilehlá k zemině
A71: 63 | B71: Pro tuto konstrukci je památkovou péčí stanoven zvláštní postup při provádění : | Z71: Ne
A72: 64 | B72: Plocha konstrukce (dle energetického hodnocení): | Z72: 86.4 | AD72: m2
A73: 65 | B73: Součinitel prostupu tepla konstrukce U : | Z73: 0.229 | AD73: W.m-2.K-1
A74: 66 | B74: Vrstva 1. | C74: Název výrobku (typové označení) **: | Z74: Kód SVT *:
A75: 67 | C75: Tloušťka tepelně izolačního materiálu : | Z75: 120 | AD75: mm
A76: 68 | C76: Deklarovaný součinitel tepelné vodivosti izolačního materiálu λd : | Z76: 0.032 | AD76: W.m-1.K-1
A77: 69 | B77: Vrstva 2. | C77: Název výrobku (typové označení) **: | Z77: Kód SVT *:
A78: 70 | C78: Tloušťka tepelně izolačního materiálu : | Z78: 20 | AD78: mm
A79: 71 | C79: Deklarovaný součinitel tepelné vodivosti izolačního materiálu λd : | Z79: 0.039 | AD79: W.m-1.K-1
A80: 72 | B80: Vrstva 3. | C80: Název výrobku (typové označení) **: | Z80: Kód SVT *:
A81: 73 | C81: Tloušťka tepelně izolačního materiálu : | AD81: mm
A82: 74 | C82: Deklarovaný součinitel tepelné vodivosti izolačního materiálu λd : | AD82: W.m-1.K-1
B85: Část B - Podpis energetického specialisty
A87: 75 | B87: V | J87: dne | L87: 1.7.2016
T89: Ing. Jan Zelený CSc
T90: jméno, příjmení (hůlkovým písmem), podpis energetického specialisty
B94: Stěna vnější
B95: Střecha strmá se sklonem nad 45°
B96: Střecha plochá a šikmá se sklonem do 45° včetně
B97: Strop s podlahou nad venkovním prostorem
B98: Strop pod nevytápěnou půdou (se střechou bez tepelné izolace)
B99: Stěna k nevytápěné půdě (se střechou bez tepelné izolace)
B100: Podlaha a stěna vytápěného prostoru přilehlá k zemině
B101: Strop a stěna vnitřní z vytápěného k nevytápěnému prostoru
B102: Strop a stěna vnitřní z vytápěného k temperovanému prostoru
B103: Strop a stěna vnější z temperovaného prostoru k venkovnímu prostředí
B104: Podlaha a stěna temperovaného prostoru přilehlá k zemině
B105: Stěna mezi sousedními budovami
B106: Strop mezi prostory s rozdílem teplot do 10 °C včetně
B107: Stěna mezi prostory s rozdílem teplot do 10 °C včetně
B108: Strop vnitřní mezi prostory s rozdílem teplot do 5 °C včetně
B109: Stěna vnitřní mezi prostory s rozdílem teplot do 5 °C včetně
B112: Ano
B113: Ne
B116: 1. Výplň otvoru ve vnější stěně a strmé střeše, z vytápěného prostoru do venkovního prostředí, kromě dveří
B117: 2. Šikmá výplň otvoru se sklonem do 45°, z vytápěného prostoru do venkovního prostředí
B118: 3. Dveřní výplň otvoru z vytápěného prostoru do venkovního prostředí (včetně rámu)
B119: 4. Výplň otvoru vedoucí z vytápěného do temperovaného prostoru
B120: 5. Výplň otvoru vedoucí z temperovaného prostoru do venkovního prostředí
B121: 6. Šikmá výplň otvoru se sklonem do 45° vedoucí z temperovaného prostoru do venkovního prostředí
B122: 7. Lehký obvodový plášť (LOP)
B125: Obvodová stěna
B126: Střecha
B127: Podlaha na terénu
B128: Ostatní konstrukce a strop
B137: 57 | C137: Název/označení konstrukce v odborném posudku :
B138: =1+B137 -> 58 | C138: Typ konstrukce pro stanovení výše způsobilých výdajů : | R138: Obvodová stěna
B139: =1+#REF! ->  | C139: Typ konstrukce dle ČSN 73 0540-2:2011, tab.3:
B140: =1+B139 ->  | C140: Pro tuto konstrukci je památkovou péčí stanoven zvláštní postup při provádění : | AA140: Ne
C141: Plocha konstrukce (dle energetického hodnocení): | AE141: m2
C142: Součinitel prostupu tepla konstrukce U : | AE142: W.m-2.K-1
C143: Vrstva 1. | D143: Název výrobku (typové označení) **: | AA143: Kód SVT *:
D144: Tloušťka tepelně izolačního materiálu : | AE144: mm
D145: Deklarovaný součinitel tepelné vodivosti izolačního materiálu λd : | AE145: W.m-1.K-1
C146: Vrstva 2. | D146: Název výrobku (typové označení) **: | AA146: Kód SVT *:
D147: Tloušťka tepelně izolačního materiálu : | AE147: mm
D148: Deklarovaný součinitel tepelné vodivosti izolačního materiálu λd : | AE148: W.m-1.K-1
C149: Vrstva 3. | D149: Název výrobku (typové označení) **: | AA149: Kód SVT *:
D150: Tloušťka tepelně izolačního materiálu : | AE150: mm
D151: Deklarovaný součinitel tepelné vodivosti izolačního materiálu λd : | AE151: W.m-1.K-1

Sheet Příloha č.1 krycího listu (2)
B1: Příloha č. 1 - Soupis zateplovaných konstrukcí na obálce budovy
A3: 1 | B3: ČÍSLO ŽÁDOSTI : | Z3: =IF(ISNUMBER('Krycí list - oblast podpory A'!Z6:AG6),'Krycí list - oblast podpory A'!Z6:AG6,"") -> 
A5: 2 | B5: Část A - Parametry konstrukcí | X5: ČÍSLO LISTU * | AD5: 2 | AE5: Z | AG5: 2
A7: 3 | B7: Název/označení konstrukce v odborném posudku : | Q7: STR-14
A8: =1+A7 -> 4 | B8: Typ konstrukce pro stanovení výše způsobilých výdajů : | T8: Obvodová stěna a podlaha nad exteriérem
A9: 5 | B9: (vyberte jeden typ) | S9: X | T9: Střecha
A10: 6 | T10: Podlaha na terénu
A11: 7 | T11: Strop a ostatní konstrukce
A12: 8 | B12: Typ konstrukce dle ČSN 73 0540-2:2011, tab.3: | O12: Střecha plochá a šikmá se sklonem do 45° včetně
A13: 9 | B13: Pro tuto konstrukci je památkovou péčí stanoven zvláštní postup při provádění : | Z13: Ne
A14: 10 | B14: Plocha konstrukce (dle energetického hodnocení): | Z14: 46.7 | AD14: m2
A15: 11 | B15: Součinitel prostupu tepla konstrukce U : | Z15: 0.14 | AD15: W.m-2.K-1
A16: 12 | B16: Vrstva 1. | C16: Název výrobku (typové označení) **: | Z16: Kód SVT *:
A17: 13 | C17: Tloušťka tepelně izolačního materiálu : | Z17: 40 | AD17: mm
A18: 14 | C18: Deklarovaný součinitel tepelné vodivosti izolačního materiálu λd : | Z18: 0.037 | AD18: W.m-1.K-1
A19: 15 | B19: Vrstva 2. | C19: Název výrobku (typové označení) **: | Z19: Kód SVT *:
A20: 16 | C20: Tloušťka tepelně izolačního materiálu : | Z20: 140 | AD20: mm
A21: 17 | C21: Deklarovaný součinitel tepelné vodivosti izolačního materiálu λd : | Z21: 0.035 | AD21: W.m-1.K-1
A22: 18 | B22: Vrstva 3. | C22: Název výrobku (typové označení) **: | Z22: Kód SVT *:
A23: 19 | C23: Tloušťka tepelně izolačního materiálu : | Z23: 140 | AD23: mm
A24: 20 | C24: Deklarovaný součinitel tepelné vodivosti izolačního materiálu λd : | Z24: 0.035 | AD24: W.m-1.K-1
A26: =1+A24 -> 21 | B26: Název/označení konstrukce v odborném posudku : | Q26: STR-15
A27: =1+A26 -> 22 | B27: Typ konstrukce pro stanovení výše způsobilých výdajů : | T27: Obvodová stěna a podlaha nad exteriérem
A28: 23 | B28: (vyberte jeden typ) | T28: Střecha
A29: 24 | T29: Podlaha na terénu
A30: 25 | S30: X | T30: Strop a ostatní konstrukce
A31: 26 | B31: Typ konstrukce dle ČSN 73 0540-2:2011, tab.3: | O31: Střecha plochá a šikmá se sklonem do 45° včetně
A32: 27 | B32: Pro tuto konstrukci je památkovou péčí stanoven zvláštní postup při provádění : | Z32: Ne
A33: 28 | B33: Plocha konstrukce (dle energetického hodnocení): | Z33: 51.1 | AD33: m2
A34: 29 | B34: Součinitel prostupu tepla konstrukce U : | Z34: 0.14 | AD34: W.m-2.K-1
A35: 30 | B35: Vrstva 1. | C35: Název výrobku (typové označení) **: | Z35: Kód SVT *:
A36: 31 | C36: Tloušťka tepelně izolačního materiálu : | Z36: 40 | AD36: mm
A37: 32 | C37: Deklarovaný součinitel tepelné vodivosti izolačního materiálu λd : | Z37: 0.037 | AD37: W.m-1.K-1
A38: 33 | B38: Vrstva 2. | C38: Název výrobku (typové označení) **: | Z38: Kód SVT *:
A39: 34 | C39: Tloušťka tepelně izolačního materiálu : | Z39: 140 | AD39: mm
A40: 35 | C40: Deklarovaný součinitel tepelné vodivosti izolačního materiálu λd : | Z40: 0.035 | AD40: W.m-1.K-1
A41: 36 | B41: Vrstva 3. | C41: Název výrobku (typové označení) **: | Z41: Kód SVT *:
A42: 37 | C42: Tloušťka tepelně izolačního materiálu : | Z42: 140 | AD42: mm
A43: 38 | C43: Deklarovaný součinitel tepelné vodivosti izolačního materiálu λd : | Z43: 0.035 | AD43: W.m-1.K-1
A46: 39 | B46: Název/označení konstrukce v odborném posudku : | Q46: STR-16
A47: =A46+1 -> 40 | B47: Typ konstrukce pro stanovení výše způsobilých výdajů : | T47: Obvodová stěna a podlaha nad exteriérem
A48: 41 | B48: (vyberte jeden typ) | S48: X | T48: Střecha
A49: 42 | T49: Podlaha na terénu
A50: 43 | T50: Strop a ostatní konstrukce
A51: 44 | B51: Typ konstrukce dle ČSN 73 0540-2:2011, tab.3: | O51: Střecha plochá a šikmá se sklonem do 45° včetně
A52: 45 | B52: Pro tuto konstrukci je památkovou péčí stanoven zvláštní postup při provádění : | Z52: Ne
A53: 46 | B53: Plocha konstrukce (dle energetického hodnocení): | Z53: 8.7 | AD53: m2
A54: 47 | B54: Součinitel prostupu tepla konstrukce U : | Z54: 0.14 | AD54: W.m-2.K-1
A55: 48 | B55: Vrstva 1. | C55: Název výrobku (typové označení) **: | Z55: Kód SVT *:
A56: 49 | C56: Tloušťka tepelně izolačního materiálu : | Z56: 40 | AD56: mm
A57: 50 | C57: Deklarovaný součinitel tepelné vodivosti izolačního materiálu λd : | Z57: 0.037 | AD57: W.m-1.K-1
A58: 51 | B58: Vrstva 2. | C58: Název výrobku (typové označení) **: | Z58: Kód SVT *:
A59: 52 | C59: Tloušťka tepelně izolačního materiálu : | Z59: 140 | AD59: mm
A60: 53 | C60: Deklarovaný součinitel tepelné vodivosti izolačního materiálu λd : | Z60: 0.035 | AD60: W.m-1.K-1
A61: 54 | B61: Vrstva 3. | C61: Název výrobku (typové označení) **: | Z61: Kód SVT *:
A62: 55 | C62: Tloušťka tepelně izolačního materiálu : | Z62: 140 | AD62: mm
A63: 56 | C63: Deklarovaný součinitel tepelné vodivosti izolačního materiálu λd : | Z63: 0.035 | AD63: W.m-1.K-1
A65: 57 | B65: Název/označení konstrukce v odborném posudku : | Q65: STN-11
A66: =1+A65 -> 58 | B66: Typ konstrukce pro stanovení výše způsobilých výdajů : | T66: Obvodová stěna a podlaha nad exteriérem
A67: 59 | B67: (vyberte jeden typ) | T67: Střecha
A68: 60 | T68: Podlaha na terénu
A69: 61 | S69: X | T69: Strop a ostatní konstrukce
A70: 62 | B70: Typ konstrukce dle ČSN 73 0540-2:2011, tab.3: | O70: Strop a stěna vnitřní z vytápěného k nevytápěnému prostoru
A71: 63 | B71: Pro tuto konstrukci je památkovou péčí stanoven zvláštní postup při provádění : | Z71: Ne
A72: 64 | B72: Plocha konstrukce (dle energetického hodnocení): | Z72: 8.2 | AD72: m2
A73: 65 | B73: Součinitel prostupu tepla konstrukce U : | Z73: 0.205 | AD73: W.m-2.K-1
A74: 66 | B74: Vrstva 1. | C74: Název výrobku (typové označení) **: | Z74: Kód SVT *:
A75: 67 | C75: Tloušťka tepelně izolačního materiálu : | Z75: 150 | AD75: mm
A76: 68 | C76: Deklarovaný součinitel tepelné vodivosti izolačního materiálu λd : | Z76: 0.032 | AD76: W.m-1.K-1
A77: 69 | B77: Vrstva 2. | C77: Název výrobku (typové označení) **: | Z77: Kód SVT *:
A78: 70 | C78: Tloušťka tepelně izolačního materiálu : | AD78: mm
A79: 71 | C79: Deklarovaný součinitel tepelné vodivosti izolačního materiálu λd : | AD79: W.m-1.K-1
A80: 72 | B80: Vrstva 3. | C80: Název výrobku (typové označení) **: | Z80: Kód SVT *:
A81: 73 | C81: Tloušťka tepelně izolačního materiálu : | AD81: mm
A82: 74 | C82: Deklarovaný součinitel tepelné vodivosti izolačního materiálu λd : | AD82: W.m-1.K-1
B85: Část B - Podpis energetického specialisty
A87: 75 | B87: V | J87: dne | L87: 1.7.2016
T89: Ing. Jan Zelený CSc
T90: jméno, příjmení (hůlkovým písmem), podpis energetického specialisty
B94: Stěna vnější
B95: Střecha strmá se sklonem nad 45°
B96: Střecha plochá a šikmá se sklonem do 45° včetně
B97: Strop s podlahou nad venkovním prostorem
B98: Strop pod nevytápěnou půdou (se střechou bez tepelné izolace)
B99: Stěna k nevytápěné půdě (se střechou bez tepelné izolace)
B100: Podlaha a stěna vytápěného prostoru přilehlá k zemině
B101: Strop a stěna vnitřní z vytápěného k nevytápěnému prostoru
B102: Strop a stěna vnitřní z vytápěného k temperovanému prostoru
B103: Strop a stěna vnější z temperovaného prostoru k venkovnímu prostředí
B104: Podlaha a stěna temperovaného prostoru přilehlá k zemině
B105: Stěna mezi sousedními budovami
B106: Strop mezi prostory s rozdílem teplot do 10 °C včetně
B107: Stěna mezi prostory s rozdílem teplot do 10 °C včetně
B108: Strop vnitřní mezi prostory s rozdílem teplot do 5 °C včetně
B109: Stěna vnitřní mezi prostory s rozdílem teplot do 5 °C včetně
B112: Ano
B113: Ne
B116: 1. Výplň otvoru ve vnější stěně a strmé střeše, z vytápěného prostoru do venkovního prostředí, kromě dveří
B117: 2. Šikmá výplň otvoru se sklonem do 45°, z vytápěného prostoru do venkovního prostředí
B118: 3. Dveřní výplň otvoru z vytápěného prostoru do venkovního prostředí (včetně rámu)
B119: 4. Výplň otvoru vedoucí z vytápěného do temperovaného prostoru
B120: 5. Výplň otvoru vedoucí z temperovaného prostoru do venkovního prostředí
B121: 6. Šikmá výplň otvoru se sklonem do 45° vedoucí z temperovaného prostoru do venkovního prostředí
B122: 7. Lehký obvodový plášť (LOP)
B125: Obvodová stěna
B126: Střecha
B127: Podlaha na terénu
B128: Ostatní konstrukce a strop
B137: 57 | C137: Název/označení konstrukce v odborném posudku :
B138: =1+B137 -> 58 | C138: Typ konstrukce pro stanovení výše způsobilých výdajů : | R138: Obvodová stěna
B139: =1+#REF! ->  | C139: Typ konstrukce dle ČSN 73 0540-2:2011, tab.3:
B140: =1+B139 ->  | C140: Pro tuto konstrukci je památkovou péčí stanoven zvláštní postup při provádění : | AA140: Ne
C141: Plocha konstrukce (dle energetického hodnocení): | AE141: m2
C142: Součinitel prostupu tepla konstrukce U : | AE142: W.m-2.K-1
C143: Vrstva 1. | D143: Název výrobku (typové označení) **: | AA143: Kód SVT *:
D144: Tloušťka tepelně izolačního materiálu : | AE144: mm
D145: Deklarovaný součinitel tepelné vodivosti izolačního materiálu λd : | AE145: W.m-1.K-1
C146: Vrstva 2. | D146: Název výrobku (typové označení) **: | AA146: Kód SVT *:
D147: Tloušťka tepelně izolačního materiálu : | AE147: mm
D148: Deklarovaný součinitel tepelné vodivosti izolačního materiálu λd : | AE148: W.m-1.K-1
C149: Vrstva 3. | D149: Název výrobku (typové označení) **: | AA149: Kód SVT *:
D150: Tloušťka tepelně izolačního materiálu : | AE150: mm
D151: Deklarovaný součinitel tepelné vodivosti izolačního materiálu λd : | AE151: W.m-1.K-1

Sheet Příloha č. 2 krycího listu
B1: Příloha č. 2 - Soupis měněných výplní otvorů na obálce budovy
A3: 1 | B3: ČÍSLO ŽÁDOSTI : | Z3: =IF(ISNUMBER('Krycí list - oblast podpory A'!Z6:AG6),'Krycí list - oblast podpory A'!Z6:AG6,"") -> 
A5: 2 | B5: Část A - Parametry konstrukcí | X5: ČÍSLO LISTU * | AD5: 1 | AE5: Z | AG5: 2
B7: Poznámka: Zapisují se pouze podporované výplně otvorů s různými parametry. Například, v případě, že mají všechny podporované výplně otvorů shodné parametry, bude zapsán pouze jeden výrobek.
A10: 3 | B10: Název/označení konstrukce v odborném posudku : | R10: VYP-1
A11: =1+A10 -> 4 | B11: Typ konstrukce dle ČSN 73 0540-2:2011, tab. 3 : | O11: 1. Výplň otvoru ve vnější stěně a strmé střeše, z vytápěného prostoru do venkovního prostředí, kromě dveří
A12: 5 | B12: Pro tuto konstrukci je památkovou péčí stanoven zvláštní postup při provádění : | Z12: Ne
A13: 6 | B13: Plocha konstrukce (dle energetického hodnocení) : | Z13: 4.4 | AD13: m2
A14: 7 | B14: Součinitel prostupu tepla výplně otvoru stanovený pro dané rozměry Uw/UD : | Z14: 0.9 | AD14: W.m-2.K-1
A15: 8 | B15: Součinitel prostupu tepla výplně Ug **: | AD15: W.m-2.K-1
A16: 9 | B16: Součinitel prostupu tepla rámu Uf **: | AD16: W.m-2.K-1
A17: 10 | B17: Lineární činitel prostupu tepla ψg **: | AD17: W.m-1.K-1
A18: 11 | B18: Výška profilu rámu **: | AD18: mm
A19: 12 | B19: Celkový činitel prostupu solární energie g : | Z19: 0.50 | AD19: -
A20: 13 | B20: Název výrobku (typové označení) **: | Z20: Kód SVT *:
A22: 14 | B22: Název/označení konstrukce v odborném posudku : | R22: VYP-2
A23: =1+A22 -> 15 | B23: Typ konstrukce dle ČSN 73 0540-2:2011, tab. 3 : | O23: 1. Výplň otvoru ve vnější stěně a strmé střeše, z vytápěného prostoru do venkovního prostředí, kromě dveří
A24: 16 | B24: Pro tuto konstrukci je památkovou péčí stanoven zvláštní postup při provádění : | Z24: Ne
A25: 17 | B25: Plocha konstrukce (dle energetického hodnocení) : | Z25: 3.9 | AD25: m2
A26: 18 | B26: Součinitel prostupu tepla výplně otvoru stanovený pro dané rozměry Uw/UD : | Z26: 0.9 | AD26: W.m-2.K-1
A27: 19 | B27: Součinitel prostupu tepla výplně Ug **: | AD27: W.m-2.K-1
A28: 20 | B28: Součinitel prostupu tepla rámu Uf **: | AD28: W.m-2.K-1
A29: 21 | B29: Lineární činitel prostupu tepla ψg **: | AD29: W.m-1.K-1
A30: 22 | B30: Výška profilu rámu **: | AD30: mm
A31: 23 | B31: Celkový činitel prostupu solární energie g : | Z31: 0.50 | AD31: -
A32: 24 | B32: Název výrobku (typové označení) **: | Z32: Kód SVT *:
A34: 25 | B34: Název/označení konstrukce v odborném posudku : | R34: VYP-3
A35: =1+A34 -> 26 | B35: Typ konstrukce dle ČSN 73 0540-2:2011, tab. 3 : | O35: 1. Výplň otvoru ve vnější stěně a strmé střeše, z vytápěného prostoru do venkovního prostředí, kromě dveří
A36: 27 | B36: Pro tuto konstrukci je památkovou péčí stanoven zvláštní postup při provádění : | Z36: Ne
A37: 28 | B37: Plocha konstrukce (dle energetického hodnocení) : | Z37: 5.8 | AD37: m2
A38: 29 | B38: Součinitel prostupu tepla výplně otvoru stanovený pro dané rozměry Uw/UD : | Z38: 0.9 | AD38: W.m-2.K-1
A39: 30 | B39: Součinitel prostupu tepla výplně Ug **: | AD39: W.m-2.K-1
A40: 31 | B40: Součinitel prostupu tepla rámu Uf **: | AD40: W.m-2.K-1
A41: 32 | B41: Lineární činitel prostupu tepla ψg **: | AD41: W.m-1.K-1
A42: 33 | B42: Výška profilu rámu **: | AD42: mm
A43: 34 | B43: Celkový činitel prostupu solární energie g : | Z43: 0.50 | AD43: -
A44: 35 | B44: Název výrobku (typové označení) **: | Z44: Kód SVT *:
A46: 36 | B46: Název/označení konstrukce v odborném posudku : | R46: VYP-4
A47: =1+A46 -> 37 | B47: Typ konstrukce dle ČSN 73 0540-2:2011, tab. 3 : | O47: 1. Výplň otvoru ve vnější stěně a strmé střeše, z vytápěného prostoru do venkovního prostředí, kromě dveří
A48: 38 | B48: Pro tuto konstrukci je památkovou péčí stanoven zvláštní postup při provádění : | Z48: Ne
A49: 39 | B49: Plocha konstrukce (dle energetického hodnocení) : | Z49: 3.6 | AD49: m2
A50: 40 | B50: Součinitel prostupu tepla výplně otvoru stanovený pro dané rozměry Uw/UD : | Z50: 0.9 | AD50: W.m-2.K-1
A51: 41 | B51: Součinitel prostupu tepla výplně Ug **: | AD51: W.m-2.K-1
A52: 42 | B52: Součinitel prostupu tepla rámu Uf **: | AD52: W.m-2.K-1
A53: 43 | B53: Lineární činitel prostupu tepla ψg **: | AD53: W.m-1.K-1
A54: 44 | B54: Výška profilu rámu **: | AD54: mm
A55: 45 | B55: Celkový činitel prostupu solární energie g : | Z55: 0.50 | AD55: -
A56: 46 | B56: Název výrobku (typové označení) **: | Z56: Kód SVT *:
A58: 47 | B58: Název/označení konstrukce v odborném posudku : | R58: VYP-5
A59: =1+A58 -> 48 | B59: Typ konstrukce dle ČSN 73 0540-2:2011, tab. 3 : | O59: 2. Šikmá výplň otvoru se sklonem do 45°, z vytápěného prostoru do venkovního prostředí
A60: 49 | B60: Pro tuto konstrukci je památkovou péčí stanoven zvláštní postup při provádění : | Z60: Ne
A61: 50 | B61: Plocha konstrukce (dle energetického hodnocení) : | Z61: 2.1 | AD61: m2
A62: 51 | B62: Součinitel prostupu tepla výplně otvoru stanovený pro dané rozměry Uw/UD : | Z62: 1.4 | AD62: W.m-2.K-1
A63: 52 | B63: Součinitel prostupu tepla výplně Ug **: | AD63: W.m-2.K-1
A64: 53 | B64: Součinitel prostupu tepla rámu Uf **: | AD64: W.m-2.K-1
A65: 54 | B65: Lineární činitel prostupu tepla ψg **: | AD65: W.m-1.K-1
A66: 55 | B66: Výška profilu rámu **: | AD66: mm
A67: 56 | B67: Celkový činitel prostupu solární energie g : | Z67: 0.51 | AD67: -
A68: 57 | B68: Název výrobku (typové označení) **: | Z68: Kód SVT *:
A70: 58 | B70: Název/označení konstrukce v odborném posudku : | R70: VYP-6
A71: =1+A70 -> 59 | B71: Typ konstrukce dle ČSN 73 0540-2:2011, tab. 3 : | O71: 2. Šikmá výplň otvoru se sklonem do 45°, z vytápěného prostoru do venkovního prostředí
A72: 60 | B72: Pro tuto konstrukci je památkovou péčí stanoven zvláštní postup při provádění : | Z72: Ne
A73: 61 | B73: Plocha konstrukce (dle energetického hodnocení) : | Z73: 3.2 | AD73: m2
A74: 62 | B74: Součinitel prostupu tepla výplně otvoru stanovený pro dané rozměry Uw/UD : | Z74: 1.4 | AD74: W.m-2.K-1
A75: 63 | B75: Součinitel prostupu tepla výplně Ug **: | AD75: W.m-2.K-1
A76: 64 | B76: Součinitel prostupu tepla rámu Uf **: | AD76: W.m-2.K-1
A77: 65 | B77: Lineární činitel prostupu tepla ψg **: | AD77: W.m-1.K-1
A78: 66 | B78: Výška profilu rámu **: | AD78: mm
A79: 67 | B79: Celkový činitel prostupu solární energie g : | Z79: 0.51 | AD79: -
A80: 68 | B80: Název výrobku (typové označení) **: | Z80: Kód SVT *:
B82: Část B - Podpis energetického specialisty
A84: 69 | B84: V | J84: dne | L84: 1.7.2016
T86: Ing. Jan Zelený CSc
T87: jméno, příjmení (hůlkovým písmem), podpis energetického specialisty
B92: Stěna vnější
B93: Střecha strmá se sklonem nad 45°
B94: Střecha plochá a šikmá se sklonem do 45° včetně
B95: Strop s podlahou nad venkovním prostorem
B96: Strop pod nevytápěnou půdou (se střechou bez tepelné izolace)
B97: Stěna k nevytápěné půdě (se střechou bez tepelné izolace)
B98: Podlaha a stěna vytápěného prostoru přilehlá k zemině
B99: Strop a stěna vnitřní z vytápěného k nevytápěnému prostoru
B100: Strop a stěna vnitřní z vytápěného k temperovanému prostoru
B101: Strop a stěna vnější z temperovaného prostoru k venkovnímu prostředí
B102: Podlaha a stěna temperovaného prostoru přilehlá k zemině
B103: Stěna mezi sousedními budovami
B104: Strop mezi prostory s rozdílem teplot do 10 °C včetně
B105: Stěna mezi prostory s rozdílem teplot do 10 °C včetně
B106: Strop vnitřní mezi prostory s rozdílem teplot do 5 °C včetně
B107: Stěna vnitřní mezi prostory s rozdílem teplot do 5 °C včetně
B110: Ano
B111: Ne
B114: 1. Výplň otvoru ve vnější stěně a strmé střeše, z vytápěného prostoru do venkovního prostředí, kromě dveří
B115: 2. Šikmá výplň otvoru se sklonem do 45°, z vytápěného prostoru do venkovního prostředí
B116: 3. Dveřní výplň otvoru z vytápěného prostoru do venkovního prostředí (včetně rámu)
B117: 4. Výplň otvoru vedoucí z vytápěného do temperovaného prostoru
B118: 5. Výplň otvoru vedoucí z temperovaného prostoru do venkovního prostředí
B119: 6. Šikmá výplň otvoru se sklonem do 45° vedoucí z temperovaného prostoru do venkovního prostředí
B120: 7. Lehký obvodový plášť (LOP)

Sheet Příloha č. 2 krycího listu (2)
B1: Příloha č. 2 - Soupis měněných výplní otvorů na obálce budovy
A3: 1 | B3: ČÍSLO ŽÁDOSTI : | Z3: =IF(ISNUMBER('Krycí list - oblast podpory A'!Z6:AG6),'Krycí list - oblast podpory A'!Z6:AG6,"") -> 
A5: 2 | B5: Část A - Parametry konstrukcí | X5: ČÍSLO LISTU * | AD5: 2 | AE5: Z | AG5: 2
B7: Poznámka: Zapisují se pouze podporované výplně otvorů s různými parametry. Například, v případě, že mají všechny podporované výplně otvorů shodné parametry, bude zapsán pouze jeden výrobek.
A10: 3 | B10: Název/označení konstrukce v odborném posudku : | R10: VYP-7
A11: =1+A10 -> 4 | B11: Typ konstrukce dle ČSN 73 0540-2:2011, tab. 3 : | O11: 3. Dveřní výplň otvoru z vytápěného prostoru do venkovního prostředí (včetně rámu)
A12: 5 | B12: Pro tuto konstrukci je památkovou péčí stanoven zvláštní postup při provádění : | Z12: Ne
A13: 6 | B13: Plocha konstrukce (dle energetického hodnocení) : | Z13: 2 | AD13: m2
A14: 7 | B14: Součinitel prostupu tepla výplně otvoru stanovený pro dané rozměry Uw/UD : | Z14: 1.5 | AD14: W.m-2.K-1
A15: 8 | B15: Součinitel prostupu tepla výplně Ug **: | AD15: W.m-2.K-1
A16: 9 | B16: Součinitel prostupu tepla rámu Uf **: | AD16: W.m-2.K-1
A17: 10 | B17: Lineární činitel prostupu tepla ψg **: | AD17: W.m-1.K-1
A18: 11 | B18: Výška profilu rámu **: | AD18: mm
A19: 12 | B19: Celkový činitel prostupu solární energie g : | Z19: 0.50 | AD19: -
A20: 13 | B20: Název výrobku (typové označení) **: | Z20: Kód SVT *:
A22: 14 | B22: Název/označení konstrukce v odborném posudku :
A23: =1+A22 -> 15 | B23: Typ konstrukce dle ČSN 73 0540-2:2011, tab. 3 :
A24: 16 | B24: Pro tuto konstrukci je památkovou péčí stanoven zvláštní postup při provádění : | Z24: Ne
A25: 17 | B25: Plocha konstrukce (dle energetického hodnocení) : | AD25: m2
A26: 18 | B26: Součinitel prostupu tepla výplně otvoru stanovený pro dané rozměry Uw/UD : | AD26: W.m-2.K-1
A27: 19 | B27: Součinitel prostupu tepla výplně Ug **: | AD27: W.m-2.K-1
A28: 20 | B28: Součinitel prostupu tepla rámu Uf **: | AD28: W.m-2.K-1
A29: 21 | B29: Lineární činitel prostupu tepla ψg **: | AD29: W.m-1.K-1
A30: 22 | B30: Výška profilu rámu **: | AD30: mm
A31: 23 | B31: Celkový činitel prostupu solární energie g : | AD31: -
A32: 24 | B32: Název výrobku (typové označení) **: | Z32: Kód SVT *:
A34: 25 | B34: Název/označení konstrukce v odborném posudku :
A35: =1+A34 -> 26 | B35: Typ konstrukce dle ČSN 73 0540-2:2011, tab. 3 :
A36: 27 | B36: Pro tuto konstrukci je památkovou péčí stanoven zvláštní postup při provádění : | Z36: Ne
A37: 28 | B37: Plocha konstrukce (dle energetického hodnocení) : | AD37: m2
A38: 29 | B38: Součinitel prostupu tepla výplně otvoru stanovený pro dané rozměry Uw/UD : | AD38: W.m-2.K-1
A39: 30 | B39: Součinitel prostupu tepla výplně Ug **: | AD39: W.m-2.K-1
A40: 31 | B40: Součinitel prostupu tepla rámu Uf **: | AD40: W.m-2.K-1
A41: 32 | B41: Lineární činitel prostupu tepla ψg **: | AD41: W.m-1.K-1
A42: 33 | B42: Výška profilu rámu **: | AD42: mm
A43: 34 | B43: Celkový činitel prostupu solární energie g : | AD43: -
A44: 35 | B44: Název výrobku (typové označení) **: | Z44: Kód SVT *:
A46: 36 | B46: Název/označení konstrukce v odborném posudku :
A47: =1+A46 -> 37 | B47: Typ konstrukce dle ČSN 73 0540-2:2011, tab. 3 :
A48: 38 | B48: Pro tuto konstrukci je památkovou péčí stanoven zvláštní postup při provádění : | Z48: Ne
A49: 39 | B49: Plocha konstrukce (dle energetického hodnocení) : | AD49: m2
A50: 40 | B50: Součinitel prostupu tepla výplně otvoru stanovený pro dané rozměry Uw/UD : | AD50: W.m-2.K-1
A51: 41 | B51: Součinitel prostupu tepla výplně Ug **: | AD51: W.m-2.K-1
A52: 42 | B52: Součinitel prostupu tepla rámu Uf **: | AD52: W.m-2.K-1
A53: 43 | B53: Lineární činitel prostupu tepla ψg **: | AD53: W.m-1.K-1
A54: 44 | B54: Výška profilu rámu **: | AD54: mm
A55: 45 | B55: Celkový činitel prostupu solární energie g : | AD55: -
A56: 46 | B56: Název výrobku (typové označení) **: | Z56: Kód SVT *:
A58: 47 | B58: Název/označení konstrukce v odborném posudku :
A59: =1+A58 -> 48 | B59: Typ konstrukce dle ČSN 73 0540-2:2011, tab. 3 :
A60: 49 | B60: Pro tuto konstrukci je památkovou péčí stanoven zvláštní postup při provádění : | Z60: Ne
A61: 50 | B61: Plocha konstrukce (dle energetického hodnocení) : | AD61: m2
A62: 51 | B62: Součinitel prostupu tepla výplně otvoru stanovený pro dané rozměry Uw/UD : | AD62: W.m-2.K-1
A63: 52 | B63: Součinitel prostupu tepla výplně Ug **: | AD63: W.m-2.K-1
A64: 53 | B64: Součinitel prostupu tepla rámu Uf **: | AD64: W.m-2.K-1
A65: 54 | B65: Lineární činitel prostupu tepla ψg **: | AD65: W.m-1.K-1
A66: 55 | B66: Výška profilu rámu **: | AD66: mm
A67: 56 | B67: Celkový činitel prostupu solární energie g : | AD67: -
A68: 57 | B68: Název výrobku (typové označení) **: | Z68: Kód SVT *:
A70: 58 | B70: Název/označení konstrukce v odborném posudku :
A71: =1+A70 -> 59 | B71: Typ konstrukce dle ČSN 73 0540-2:2011, tab. 3 :
A72: 60 | B72: Pro tuto konstrukci je památkovou péčí stanoven zvláštní postup při provádění : | Z72: Ne
A73: 61 | B73: Plocha konstrukce (dle energetického hodnocení) : | AD73: m2
A74: 62 | B74: Součinitel prostupu tepla výplně otvoru stanovený pro dané rozměry Uw/UD : | AD74: W.m-2.K-1
A75: 63 | B75: Součinitel prostupu tepla výplně Ug **: | AD75: W.m-2.K-1
A76: 64 | B76: Součinitel prostupu tepla rámu Uf **: | AD76: W.m-2.K-1
A77: 65 | B77: Lineární činitel prostupu tepla ψg **: | AD77: W.m-1.K-1
A78: 66 | B78: Výška profilu rámu **: | AD78: mm
A79: 67 | B79: Celkový činitel prostupu solární energie g : | AD79: -
A80: 68 | B80: Název výrobku (typové označení) **: | Z80: Kód SVT *:
B82: Část B - Podpis energetického specialisty
A84: 69 | B84: V | J84: dne | L84: 1.7.2016
T86: Ing. Jan Zelený CSc
T87: jméno, příjmení (hůlkovým písmem), podpis energetického specialisty
B92: Stěna vnější
B93: Střecha strmá se sklonem nad 45°
B94: Střecha plochá a šikmá se sklonem do 45° včetně
B95: Strop s podlahou nad venkovním prostorem
B96: Strop pod nevytápěnou půdou (se střechou bez tepelné izolace)
B97: Stěna k nevytápěné půdě (se střechou bez tepelné izolace)
B98: Podlaha a stěna vytápěného prostoru přilehlá k zemině
B99: Strop a stěna vnitřní z vytápěného k nevytápěnému prostoru
B100: Strop a stěna vnitřní z vytápěného k temperovanému prostoru
B101: Strop a stěna vnější z temperovaného prostoru k venkovnímu prostředí
B102: Podlaha a stěna temperovaného prostoru přilehlá k zemině
B103: Stěna mezi sousedními budovami
B104: Strop mezi prostory s rozdílem teplot do 10 °C včetně
B105: Stěna mezi prostory s rozdílem teplot do 10 °C včetně
B106: Strop vnitřní mezi prostory s rozdílem teplot do 5 °C včetně
B107: Stěna vnitřní mezi prostory s rozdílem teplot do 5 °C včetně
B110: Ano
B111: Ne
B114: 1. Výplň otvoru ve vnější stěně a strmé střeše, z vytápěného prostoru do venkovního prostředí, kromě dveří
B115: 2. Šikmá výplň otvoru se sklonem do 45°, z vytápěného prostoru do venkovního prostředí
B116: 3. Dveřní výplň otvoru z vytápěného prostoru do venkovního prostředí (včetně rámu)
B117: 4. Výplň otvoru vedoucí z vytápěného do temperovaného prostoru
B118: 5. Výplň otvoru vedoucí z temperovaného prostoru do venkovního prostředí
B119: 6. Šikmá výplň otvoru se sklonem do 45° vedoucí z temperovaného prostoru do venkovního prostředí
B120: 7. Lehký obvodový plášť (LOP)

Sheet List3 (hidden)
